bitfinex-derivatives/quotes_SOLF0:USTF0_20241010
["timestamp","ask_amount","ask_price","bid_price","bid_amount"]
[1728583992745,0.12502,136.19,136.17,3.676]
[1728583993242,0.12502,136.19,136.16,2.08216]
[1728583993462,31.22502,136.25,136.17,1.3242]
[1728583993645,1.28663192,136.24,136.17,1.3242]
[1728583993945,3.6746,136.23,136.2,3.6752]
[1728583994140,3.6746,136.23,136.2,2.08216]
[1728583994338,0.12502,136.25,136.2,2.08216]
[1728583994543,3.6749,136.22,136.2,2.08216]
[1728583994947,0.12502,136.25,136.2,2.08216]
[1728583995148,1.2867141,136.24,136.2,2.08216]
[1728583995451,1.2867141,136.24,136.18,3.39036]
[1728583996150,3.6752,136.21,136.18,3.39036]
[1728583996352,31.22502,136.25,136.18,3.39036]
[1728583996550,1.28648648,136.24,136.18,3.39036]
[1728583996765,31.1,136.22,136.18,2.08216]
[1728583997045,31.1,136.22,136.17,1.3242]
[1728583997455,31.1,136.18,136.13,0.12502]
[1728583997649,31.1,136.15,136.13,0.12502]
[1728583997951,3.6769,136.14,136.13,0.12502]
[1728583999851,3.6762,136.17,136.13,0.12502]
[1728584000058,10.68,136.19,136.13,0.12502]
[1728584000246,1.28566105,136.18,136.13,2.32952]
[1728584000446,3.6764,136.16,136.13,2.32952]
[1728584000848,3.6769,136.14,136.13,2.32952]
[1728584001048,10.68,136.19,136.13,2.32952]
[1728584001748,31.1,136.16,136.13,2.32952]
[1728584001944,10.68,136.19,136.13,0.12502]
[1728584002145,31.1,136.16,136.13,0.12502]
[1728584002759,3.6769,136.14,136.13,0.12502]
[1728584003056,3.6769,136.14,136.13,2.32952]
[1728584003353,3.6769,136.14,136.13,0.12502]
[1728584004153,31.1,136.14,136.09,2.2045]
[1728584004659,31.1,136.12,136.08,2.2045]
[1728584004849,31.1,136.15,136.08,2.2045]
[1728584005046,1.28457207,136.14,136.08,2.2045]
[1728584005350,3.6768,136.15,136.08,2.2045]
[1728584005553,104.28543064,136.18,136.08,2.2045]
[1728584005952,104.28543064,136.18,136.13,3.6771]
[1728584006353,3.6762,136.17,136.13,3.6771]
[1728584006554,104.28543064,136.18,136.13,2.2045]
[1728584007247,0.12502,136.19,136.13,2.2045]
[1728584007555,3.80072,136.19,136.14,2.694]
[1728584007857,0.12502,136.19,136.14,4.8985]
[1728584008156,3.6759,136.18,136.14,8.5751]
[1728584008363,0.12502,136.19,136.14,4.8985]
[1728584008653,0.12502,136.19,136.15,3.6765]
[1728584008860,0.12502,136.19,136.15,2.2045]
[1728584009353,0.12502,136.19,136.18,3.6758]
[1728584009558,0.12502,136.25,136.15,2.2045]
[1728584009760,3.6746,136.23,136.16,31.1]
[1728584010058,0.12502,136.25,136.18,31.1]
[1728584010249,3.79912,136.25,136.21,3.6748]
[1728584010453,3.79912,136.25,136.21,5.8793]
[1728584011048,0.12502,136.25,136.22,3.6747]
[1728584011452,0.12502,136.25,136.22,1.4105]
[1728584011654,0.12502,136.25,136.24,3.6742]
[1728584011854,0.12502,136.25,136.22,3.615]
[1728584012252,0.12502,136.25,136.24,3.6742]
[1728584012754,0.12502,136.25,136.23,3.6744]
[1728584012951,0.12502,136.25,136.23,5.8789]
[1728584013154,0.12502,136.25,136.23,2.2045]
[1728584014759,0.12502,136.25,136.21,2.2045]
[1728584014760,31.22502,136.25,136.21,2.2045]
[1728584014955,31.22502,136.25,136.19,1.3767]
[1728584014956,0.12502,136.25,136.19,3.5812]
[1728584015356,0.12502,136.25,136.2,3.675]
[1728584015560,0.12502,136.25,136.19,3.5812]
[1728584016055,0.12502,136.25,136.24,3.6742]
[1728584016456,0.12502,136.25,136.24,5.8787]
[1728584017862,0.12502,136.25,136.19,1.3767]
[1728584018160,0.12502,136.25,136.19,3.5812]
[1728584019661,0.12502,136.25,136.24,3.6742]
[1728584020056,0.12502,136.25,136.24,5.8787]
[1728584022658,3.79752,136.31,136.27,3.6732]
[1728584022862,0.12502,136.31,136.26,2.2045]
[1728584023261,3.6727,136.3,136.26,5.8781]
[1728584023466,0.12502,136.31,136.26,5.8781]
[1728584023865,0.12502,136.31,136.26,2.2045]
[1728584024069,3.6727,136.3,136.27,3.6733]
[1728584024267,31.1,136.29,136.26,2.2045]
[1728584024470,31.1,136.27,136.21,2.2045]
[1728584024659,0.12502,136.31,136.19,0.12502]
[1728584024660,31.1,136.25,136.19,0.12502]
[1728584024964,31.1,136.22,136.19,0.12502]
[1728584025177,31.1,136.2,136.13,0.12502]
[1728584025377,41.32,136.2,136.13,2.32952]
[1728584025581,31.1,136.18,136.13,2.32952]
[1728584025969,10.22,136.2,136.13,0.12502]
[1728584026172,41.32,136.2,136.13,0.12502]
[1728584026483,31.1,136.18,136.13,0.12502]
[1728584026679,10.22,136.2,136.13,0.12502]
[1728584026880,3.6766,136.16,136.13,0.12502]
[1728584027182,31.1,136.18,136.13,0.12502]
[1728584027775,3.62194064,136.19,136.13,0.12502]
[1728584027973,10.22,136.2,136.13,0.12502]
[1728584028178,10.22,136.2,136.14,3.6769]
[1728584028377,31.1,136.19,136.13,2.32952]
[1728584028777,3.6759,136.18,136.13,6.00662]
[1728584029079,31.1,136.19,136.13,2.32952]
[1728584029283,13.8953,136.2,136.15,3.6764]
[1728584029885,10.22,136.2,136.15,3.6764]
[1728584030187,3.67305229,136.26,136.15,2.2045]
[1728584030483,3.6751,136.21,136.17,3.6759]
[1728584031187,3.6754,136.2,136.17,2.2045]
[1728584031491,31.1,136.22,136.16,2.2045]
[1728584031881,3.6753,136.2,136.16,2.2045]
[1728584032182,31.1,136.22,136.16,2.2045]
[1728584032488,31.1,136.22,136.15,5.8811]
[1728584032489,3.6756,136.19,136.15,5.8811]
[1728584032789,31.1,136.22,136.15,2.2045]
[1728584034788,3.6757,136.19,136.15,5.8809]
[1728584035289,3.6758,136.18,136.15,5.8809]
[1728584035888,31.1,136.22,136.15,2.2045]
[1728584036494,3.6755,136.19,136.16,3.6763]
[1728584036689,3.6755,136.19,136.16,5.8808]
[1728584037498,3.6755,136.19,136.16,2.2045]
[1728584037793,3.6761,136.17,136.16,2.2045]
[1728584037986,31.1,136.22,136.16,2.2045]
[1728584038692,41.4462,136.24,136.17,3.6759]
[1728584038890,3.6751,136.21,136.17,3.6759]
[1728584039090,3.6751,136.21,136.17,5.8804]
[1728584039485,3.6751,136.21,136.18,3.6758]
[1728584039797,3.6749,136.22,136.18,3.6758]
[1728584039992,3.6749,136.22,136.17,2.2045]
[1728584040188,79.48502,136.25,136.17,2.2045]
[1728584040391,0.12502,136.25,136.17,2.2045]
[1728584041196,3.79912,136.25,136.17,2.2045]
[1728584041402,0.12502,136.25,136.17,2.2045]
[1728584041891,0.12502,136.25,136.18,31.1]
[1728584042201,0.12502,136.25,136.23,3.6743]
[1728584042496,0.12502,136.25,136.18,31.1]
[1728584042693,3.6742,136.24,136.21,3.6748]
[1728584043299,3.6742,136.24,136.21,5.8793]
[1728584043492,0.12502,136.25,136.21,2.2045]
[1728584043999,3.6743,136.24,136.21,2.2045]
[1728584044896,0.12502,136.25,136.21,2.2045]
[1728584045099,0.12502,136.25,136.22,1.3269]
[1728584045302,0.12502,136.25,136.22,2.6427]
[1728584045601,0.12502,136.25,136.22,4.8472]
[1728584045999,0.12502,136.25,136.23,3.6742]
[1728584046498,0.12502,136.25,136.22,2.6427]
[1728584046704,0.12502,136.31,136.22,4.8472]
[1728584047196,3.6733,136.28,136.25,3.6738]
[1728584047693,31.22502,136.31,136.22,2.6427]
[1728584047896,3.6738,136.26,136.25,2.2045]
[1728584048093,3.6738,136.26,136.23,3.6743]
[1728584048299,3.6738,136.26,136.23,5.8788]
[1728584048503,31.22502,136.31,136.23,2.2045]
[1728584048704,3.6742,136.24,136.19,0.12502]
[1728584048897,31.1,136.29,136.19,2.32952]
[1728584049103,31.1,136.29,136.2,3.6751]
[1728584049299,31.1,136.29,136.19,2.32952]
[1728584050201,3.6742,136.25,136.21,3.6749]
[1728584050509,0.12502,136.31,136.19,2.32952]
[1728584050899,3.6737,136.26,136.23,3.6742]
[1728584051300,0.12502,136.31,136.23,2.2045]
[1728584051601,9.48502,136.31,136.23,2.2045]
[1728584052305,3.6733,136.28,136.23,2.2045]
[1728584052705,9.48502,136.31,136.24,3.674]
[1728584052902,31.1,136.29,136.23,2.2045]
[1728584053208,31.1,136.25,136.2,2.2045]
[1728584053411,3.6752,136.2,136.19,0.12502]
[1728584053913,3.675,136.21,136.19,2.32952]
[1728584054102,9.36,136.24,136.19,2.32952]
[1728584054297,9.36,136.25,136.19,2.32952]
[1728584054497,9.36,136.25,136.21,3.6748]
[1728584055106,3.6744,136.24,136.21,5.8793]
[1728584055606,3.6744,136.24,136.21,5.8794]
[1728584055813,9.36,136.25,136.21,2.2045]
[1728584056201,3.6744,136.24,136.21,5.8793]
[1728584056506,9.36,136.25,136.21,5.8793]
[1728584056914,13.0341,136.25,136.21,5.8793]
[1728584057101,9.36,136.29,136.21,2.2045]
[1728584057508,3.6741,136.25,136.21,2.2045]
[1728584057705,9.36,136.29,136.21,2.2045]
[1728584058310,0.12502,136.31,136.29,3.6727]
[1728584058511,0.12502,136.31,136.26,31.1]
[1728584058816,0.12502,136.31,136.3,3.6725]
[1728584059113,0.12502,136.31,136.26,2.2045]
[1728584059821,0.12502,136.31,136.27,3.6732]
[1728584060311,3.6727,136.3,136.26,5.878]
[1728584061109,3.6727,136.3,136.27,3.6731]
[1728584061710,0.12502,136.31,136.23,31.1]
[1728584061909,0.12502,136.31,136.23,33.3045]
[1728584062309,0.12502,136.31,136.26,31.1]
[1728584062507,0.12502,136.31,136.26,33.3045]
[1728584062709,0.12502,136.31,136.26,2.2045]
[1728584064607,0.12502,136.31,136.29,3.6727]
[1728584064807,0.12502,136.31,136.29,2.2045]
[1728584065005,0.12502,136.37,136.29,33.3045]
[1728584065212,0.12502,136.37,136.3,2.6563]
[1728584065605,3.6711,136.36,136.33,3.6716]
[1728584065808,0.12502,136.37,136.33,3.6716]
[1728584066015,0.12502,136.37,136.33,2.2045]
[1728584066703,3.671,136.36,136.33,5.8761]
[1728584067807,3.79572,136.37,136.34,3.6712]
[1728584068007,0.12502,136.37,136.34,3.6712]
[1728584068410,0.12502,136.37,136.34,5.8757]
[1728584069012,3.79572,136.37,136.34,5.8757]
[1728584069315,0.12502,136.37,136.34,2.2045]
[1728584071116,3.79572,136.37,136.34,5.8758]
[1728584071517,0.12502,136.37,136.34,2.2045]
[1728584072221,3.6709,136.36,136.34,2.2045]
[1728584072521,0.12502,136.37,136.34,2.2045]
[1728584073715,3.79582,136.37,136.34,5.8758]
[1728584073922,0.12518,136.39,136.34,2.2045]
[1728584074112,0.12518,136.39,136.37,3.6705]
[1728584074314,0.12518,136.39,136.34,2.2045]
[1728584075216,3.6705,136.38,136.35,3.671]
[1728584075421,0.12518,136.39,136.35,3.671]
[1728584075626,0.12518,136.39,136.35,2.2045]
[1728584076225,3.6706,136.38,136.35,2.2045]
[1728584076532,0.12518,136.39,136.35,2.2045]
[1728584076725,3.6704,136.38,136.35,2.2045]
[1728584076924,0.12518,136.39,136.35,2.2045]
[1728584077329,3.6709,136.36,136.35,2.2045]
[1728584077629,0.12518,136.39,136.32,2.2045]
[1728584077821,3.672,136.33,136.32,2.2045]
[1728584078729,3.672,136.32,136.31,0.12502]
[1728584078930,31.1,136.37,136.31,2.32952]
[1728584079130,0.12518,136.39,136.31,2.32952]
[1728584079623,3.672,136.33,136.31,2.32952]
[1728584080023,0.12518,136.39,136.31,2.32952]
[1728584080222,3.672,136.32,136.31,2.32952]
[1728584080630,3.672,136.32,136.31,0.12502]
[1728584081727,31.1,136.33,136.27,2.2045]
[1728584082331,3.6731,136.28,136.27,2.2045]
[1728584082629,31.1,136.33,136.25,0.12502]
[1728584082930,31.1,136.33,136.25,2.32952]
[1728584085129,3.6736,136.26,136.25,0.12502]
[1728584085524,3.6736,136.26,136.25,2.32952]
[1728584086727,3.6721,136.32,136.29,3.6728]
[1728584086930,3.6721,136.32,136.26,31.1]
[1728584087129,12.63638817,136.36,136.26,32.5378]
[1728584087528,12.63638817,136.36,136.26,34.7423]
[1728584087920,3.6725,136.31,136.26,34.7423]
[1728584088734,8.92,136.34,136.26,34.7423]
[1728584089540,3.6725,136.31,136.27,3.6733]
[1728584089836,3.6725,136.31,136.27,2.2045]
[1728584090032,3.6725,136.31,136.28,3.6731]
[1728584090633,8.92,136.34,136.28,2.2045]
[1728584090821,3.6727,136.3,136.28,2.2045]
[1728584092133,8.92,136.34,136.28,2.2045]
[1728584092324,31.1,136.32,136.26,2.2045]
[1728584092522,31.1,136.32,136.25,0.12502]
[1728584092523,3.6735,136.27,136.25,0.12502]
[1728584093032,3.6724,136.31,136.25,2.32952]
[1728584093232,0.6235,136.33,136.25,2.32952]
[1728584093428,0.6235,136.33,136.26,3.6735]
[1728584094028,3.673,136.29,136.26,5.878]
[1728584094522,0.6235,136.33,136.26,2.2045]
[1728584094734,3.6727,136.3,136.26,2.2045]
[1728584095128,0.6235,136.33,136.26,2.2045]
[1728584095331,3.673,136.29,136.26,2.2045]
[1728584095531,3.673,136.29,136.26,5.8781]
[1728584095729,0.6235,136.33,136.26,2.2045]
[1728584096035,3.6734,136.27,136.26,2.2045]
[1728584096435,3.74007692,136.29,136.25,2.32952]
[1728584096735,31.1,136.32,136.25,2.32952]
[1728584097125,3.6734,136.27,136.25,2.32952]
[1728584097525,31.1,136.32,136.25,2.32952]
[1728584098435,0.6235,136.33,136.25,6.00332]
[1728584098733,0.6235,136.33,136.25,2.32952]
[1728584098938,31.1,136.32,136.25,2.32952]
[1728584099333,3.6733,136.28,136.25,2.32952]
[1728584099534,3.73226662,136.29,136.25,2.32952]
[1728584099733,31.1,136.32,136.25,2.32952]
[1728584100040,3.6735,136.27,136.25,2.32952]
[1728584100236,31.1,136.32,136.25,2.32952]
[1728584100433,3.6728,136.29,136.26,3.6735]
[1728584100730,3.6728,136.29,136.25,2.32952]
[1728584100731,0.6235,136.33,136.25,2.32952]
[1728584100935,31.1,136.32,136.25,0.12502]
[1728584101136,3.6736,136.26,136.25,0.12502]
[1728584101333,7.31325819,136.26,136.25,0.12502]
[1728584102540,15.83325819,136.26,136.25,0.12502]
[1728584103035,12.15965819,136.26,136.19,0.12502]
[1728584103238,31.1,136.25,136.19,2.32952]
[1728584103742,3.6751,136.21,136.19,2.32952]
[1728584103928,31.1,136.25,136.19,2.32952]
[1728584104130,3.6751,136.21,136.19,2.32952]
[1728584104438,3.63965819,136.26,136.19,2.32952]
[1728584104636,8.52,136.28,136.2,1.38]
[1728584104834,12.24168977,136.28,136.2,1.38]
[1728584105038,31.1,136.27,136.2,2.2045]
[1728584105238,3.6751,136.21,136.19,2.32952]
[1728584105438,31.7223,136.27,136.19,2.32952]
[1728584105938,3.6752,136.2,136.19,0.12502]
[1728584110341,3.6748,136.22,136.19,0.12502]
[1728584110646,8.52,136.23,136.19,2.32952]
[1728584110848,3.6748,136.22,136.19,2.32952]
[1728584111139,0.6223,136.27,136.19,2.32952]
[1728584111346,8.52,136.26,136.19,21.73952]
[1728584111644,8.52,136.26,136.21,3.675]
[1728584111843,8.52,136.26,136.21,21.6145]
[1728584112156,8.64502,136.31,136.22,22.1882]
[1728584112458,8.64502,136.31,136.25,31.06]
[1728584112459,0.12502,136.31,136.25,31.06]
[1728584112747,0.12502,136.31,136.24,3.6741]
[1728584113044,0.12502,136.31,136.24,2.2045]
[1728584113240,0.12502,136.31,136.27,3.6733]
[1728584113444,0.12502,136.31,136.27,2.2045]
[1728584114350,0.12502,136.31,136.27,5.8779]
[1728584114647,3.79752,136.31,136.27,5.8779]
[1728584115038,0.12502,136.31,136.27,5.8779]
[1728584115240,0.12502,136.31,136.27,2.2045]
[1728584115449,0.12502,136.31,136.28,1.393]
[1728584115749,0.12502,136.31,136.29,3.6728]
[1728584116051,8.64502,136.37,136.29,2.7048]
[1728584116247,3.672,136.33,136.29,2.7048]
[1728584116550,3.672,136.33,136.29,4.9093]
[1728584116752,3.66927898,136.36,136.29,4.9093]
[1728584116942,8.64502,136.37,136.29,4.9093]
[1728584117346,0.12502,136.37,136.29,4.9093]
[1728584117548,0.12502,136.37,136.3,31.06]
[1728584117751,0.12502,136.37,136.33,3.6716]
[1728584117948,0.12502,136.37,136.3,31.06]
[1728584118254,0.12502,136.37,136.3,33.2645]
[1728584118554,0.12502,136.37,136.34,3.6714]
[1728584118744,0.12502,136.37,136.34,5.8759]
[1728584118942,0.12502,136.37,136.36,3.6709]
[1728584119151,0.12502,136.37,136.32,31.06]
[1728584119352,0.12502,136.37,136.32,33.2645]
[1728584119649,0.12502,136.37,136.33,3.6716]
[1728584119848,0.12502,136.37,136.33,2.2045]
[1728584121344,0.12502,136.37,136.34,3.6714]
[1728584121543,0.12502,136.37,136.33,2.2045]
[1728584123048,3.6711,136.36,136.33,2.2045]
[1728584123249,0.12502,136.37,136.33,2.2045]
[1728584123555,3.79572,136.37,136.33,5.8761]
[1728584123859,0.12502,136.37,136.33,2.2045]
[1728584124957,3.79592,136.37,136.33,5.8761]
[1728584125159,0.12502,136.37,136.33,2.2045]
[1728584125761,3.58714985,136.36,136.33,2.2045]
[1728584126051,3.6725,136.3,136.29,4.9093]
[1728584126252,31.06,136.36,136.29,2.7048]
[1728584126855,31.06,136.33,136.28,2.2045]
[1728584127056,31.06,136.33,136.25,6.57142]
[1728584127252,34.64200909,136.36,136.25,36.16202]
[1728584127456,8.62502,136.37,136.27,31.06]
[1728584127653,8.62502,136.37,136.27,39.56]
[1728584127953,8.62502,136.37,136.27,41.7645]
[1728584129464,8.62502,136.37,136.29,31.06]
[1728584129653,8.62502,136.37,136.29,33.2645]
[1728584130254,3.671,136.36,136.32,3.672]
[1728584130459,3.671,136.36,136.33,2.7906]
[1728584130856,8.62502,136.37,136.33,2.7906]
[1728584131057,3.671,136.36,136.33,4.9951]
[1728584131260,8.62502,136.37,136.33,4.9951]
[1728584131562,3.6719,136.33,136.32,2.2045]
[1728584131754,8.62502,136.37,136.32,2.2045]
[1728584131961,8.62502,136.37,136.31,2.2045]
[1728584132155,8.62502,136.37,136.3,3.57]
[1728584132860,31.06,136.35,136.29,2.2045]
[1728584133075,31.06,136.33,136.28,2.7301]
[1728584133360,11.92406441,136.32,136.25,0.12502]
[1728584133551,31.06,136.31,136.25,0.12502]
[1728584133758,31.06,136.31,136.25,2.32952]
[1728584133960,34.74830298,136.31,136.25,2.32952]
[1728584134360,3.6735,136.27,136.25,2.32952]
[1728584135260,34.74830298,136.31,136.25,2.32952]
[1728584135464,3.6736,136.26,136.25,0.12502]
[1728584139862,31.06,136.31,136.25,0.12502]
[1728584140162,34.72812742,136.31,136.25,0.12502]
[1728584140364,31.06,136.34,136.25,0.12502]
[1728584140560,3.70451101,136.34,136.25,0.12502]
[1728584140756,8.26,136.33,136.25,2.32952]
[1728584140961,3.59462522,136.34,136.25,2.32952]
[1728584141161,79.32,136.35,136.25,33.38952]
[1728584141369,3.59021508,136.34,136.25,33.38952]
[1728584141665,87.58,136.35,136.27,3.6732]
[1728584141868,87.58,136.35,136.27,2.2045]
[1728584142061,3.673,136.29,136.27,2.2045]
[1728584142266,31.06,136.34,136.27,2.2045]
[1728584142267,3.72235373,136.33,136.27,2.2045]
[1728584142469,3.6731,136.28,136.27,2.2045]
[1728584142670,3.6580612,136.32,136.25,0.12502]
[1728584142865,31.06,136.34,136.25,2.32952]
[1728584143065,3.6734,136.27,136.25,2.32952]
[1728584143262,8.26,136.3,136.25,2.32952]
[1728584143464,8.26,136.3,136.25,0.12502]
[1728584144367,3.6736,136.26,136.25,0.12502]
[1728584145467,3.6736,136.26,136.19,0.12502]
[1728584145468,84.16,136.27,136.19,0.12502]
[1728584145672,31.06,136.24,136.19,2.32952]
[1728584145871,3.6752,136.2,136.19,2.32952]
[1728584147570,3.6752,136.2,136.19,0.12502]
[1728584151074,3.6748,136.22,136.19,0.12502]
[1728584151378,11.93530509,136.23,136.19,0.12502]
[1728584151675,11.93530509,136.23,136.19,2.32952]
[1728584152271,3.6752,136.2,136.19,2.32952]
[1728584152474,3.6752,136.2,136.19,0.12502]
[1728584153980,3.6766,136.15,136.13,1.52622]
[1728584154283,39.32,136.18,136.13,0.12502]
[1728584154482,8.26,136.17,136.13,2.32952]
[1728584154683,3.6769,136.14,136.13,0.12502]
[1728584154884,7.42762327,136.14,136.13,0.12502]
[1728584155083,3.6769,136.14,136.13,0.12502]
[1728584155279,7.28346369,136.14,136.13,0.12502]
[1728584155788,3.6764,136.16,136.13,0.12502]
[1728584155989,7.4300653,136.16,136.13,0.12502]
[1728584156189,31.06,136.2,136.13,0.12502]
[1728584156491,3.6765,136.16,136.13,0.12502]
[1728584157192,8.26,136.19,136.13,0.12502]
[1728584157387,3.6769,136.14,136.13,0.12502]
[1728584159287,11.9369,136.14,136.13,0.12502]
[1728584160192,11.9369,136.14,136.07,0.12502]
[1728584160193,39.32,136.14,136.07,0.12502]
[1728584160782,39.32,136.14,136.07,2.33017]
[1728584161394,3.6784,136.09,136.07,2.33017]
[1728584162397,39.32,136.14,136.07,2.33017]
[1728584162894,8.26,136.14,136.07,2.33017]
[1728584163188,8.26,136.14,136.07,6.00887]
[1728584163796,31.06,136.18,136.08,31.06]
[1728584164090,8.04,136.17,136.08,31.06]
[1728584164498,8.04,136.17,136.08,33.26515]
[1728584165091,31.06,136.16,136.08,2.20515]
[1728584165294,3.6771,136.14,136.1,3.6779]
[1728584165485,3.68112046,136.15,136.1,5.88305]
[1728584165794,8.04,136.17,136.1,2.20515]
[1728584166685,3.6769,136.14,136.11,3.6774]
[1728584166893,3.6769,136.14,136.1,2.20515]
[1728584167398,3.6769,136.14,136.1,3.6778]
[1728584167894,3.6769,136.14,136.1,5.8827]
[1728584168493,3.59027854,136.15,136.1,2.2049]
[1728584168698,8.04,136.17,136.09,2.2049]
[1728584168699,31.06,136.14,136.09,2.2049]
[1728584168892,34.73256256,136.14,136.08,2.2049]
[1728584171000,34.73256256,136.14,136.08,5.8832]
[1728584171701,3.6777,136.11,136.08,5.8832]
[1728584172399,3.6775,136.12,136.08,5.8833]
[1728584172702,34.73256256,136.14,136.08,2.2049]
[1728584172894,3.6785,136.08,136.07,2.32992]
[1728584173099,3.6785,136.08,136.07,0.12502]
[1728584173296,3.6785,136.08,136.02,1.422]
[1728584173297,31.06,136.08,136.04,2.2049]
[1728584173500,39.1,136.08,136.03,2.2049]
[1728584173694,31.06,136.05,136.01,0.12502]
[1728584173895,31.06,136.05,136.01,2.32992]
[1728584174090,31.06,136.05,136.01,0.12502]
[1728584174705,3.6801,136.02,136.01,0.12502]
[1728584175901,8.04,136.03,136.01,0.12502]
[1728584176101,8.04,136.03,136.01,2.32992]
[1728584176306,11.7201,136.03,136.01,0.12502]
[1728584176498,8.04,136.03,136.01,0.12502]
[1728584177412,11.72,136.03,136.01,0.12502]
[1728584178408,8.04,136.03,136.01,0.12502]
[1728584179402,31.06,136.02,136.0,190.20643]
[1728584179608,31.06,136.02,136.0,182.19888]
[1728584180014,3.6804,136.01,136.0,182.19888]
[1728584180205,3.6804,136.01,136.0,159.43888]
[1728584180403,3.6804,136.01,136.0,156.4369142]
[1728584180704,53.1,136.01,135.95,0.12502]
[1728584181001,0.12502,135.95,135.88,3.6837]
[1728584181311,0.12502,135.95,135.84,2.851]
[1728584181312,3.6831,135.91,135.84,2.851]
[1728584181504,3.74280718,135.91,135.86,3.6842]
[1728584181699,31.06,135.91,135.84,5.05866]
[1728584182002,3.6838,135.89,135.84,6.5358]
[1728584182205,8.5,135.88,135.84,1.4349]
[1728584182407,8.5,135.88,135.84,3.64256]
[1728584182707,3.70524284,135.92,135.84,3.64256]
[1728584182899,31.06,135.93,135.84,3.64256]
[1728584183100,3.68719723,135.94,135.85,31.06]
[1728584183304,8.5,135.92,135.85,31.06]
[1728584183505,3.6829,135.92,135.85,33.26766]
[1728584183696,31.06,135.93,135.85,2.20766]
[1728584184004,31.06,135.93,135.84,3.64256]
[1728584184213,31.06,135.93,135.84,1.4349]
[1728584184606,3.6838,135.89,135.84,3.64256]
[1728584184906,8.5,135.88,135.85,3.6845]
[1728584185209,12.1839,135.88,135.84,1.4349]
[1728584185421,8.5,135.88,135.85,3.6846]
[1728584185801,8.5,135.88,135.84,1.4349]
[1728584186005,8.5,135.91,135.84,1.4349]
[1728584186202,31.06,135.87,135.71,0.12502]
[1728584186403,34.69219237,135.87,135.78,2.7683]
[1728584186705,8.98,135.86,135.81,3.6856]
[1728584186907,8.98,135.86,135.78,4.97596]
[1728584186908,3.6849,135.85,135.78,4.97596]
[1728584187410,3.6861,135.8,135.77,0.12502]
[1728584187616,8.98,135.8,135.77,0.12502]
[1728584188008,31.06,135.85,135.77,2.33268]
[1728584188208,8.98,135.84,135.78,3.6866]
[1728584188516,3.6856,135.82,135.77,0.12502]
[1728584188705,31.06,135.85,135.77,0.12502]
[1728584189213,8.98,135.84,135.77,2.33268]
[1728584189806,3.6857,135.82,135.77,2.33268]
[1728584190008,3.6857,135.82,135.78,3.6864]
[1728584190310,3.6857,135.82,135.78,5.89406]
[1728584190508,8.98,135.84,135.78,5.89406]
[1728584190711,3.6859,135.81,135.77,6.01948]
[1728584191614,3.61794974,135.85,135.79,3.6862]
[1728584191815,31.06,135.86,135.77,2.33268]
[1728584192018,31.06,135.88,135.77,33.39268]
[1728584192220,8.98,135.87,135.77,33.39268]
[1728584192715,8.98,135.86,135.84,3.6848]
[1728584192918,3.80532768,135.89,135.77,33.39268]
[1728584192919,0.12502,135.89,135.77,33.39268]
[1728584193213,12.6641,135.88,135.84,3.6847]